Workbook

Sheet FRONT PAGE
X1: Choose your school
X2: Akiva | Y2: 3520
X3: All Saints' CE School (N20) | Y3: 3317
X4: All Saints' CE School (NW2) | Y4: 3300
X5: Annunciation RC Infant School | Y5: 3500
X6: Annunciation RC Junior School | Y6: 3514
D7: 2018-19 CFR RETURN | X7: Barnfield School | Y7: 2002
X8: Beis Yaakov | Y8: 2079
D9: Choose your school | F9: =VLOOKUP(D9,X:Y,2,0) -> 0 | X9: Beit Shvidler | Y9: 3524
X10: Bell Lane School | Y10: 2003
X11: Blessed Dominic RC School | Y11: 3511
X12: Brookhill Nursery | Y12: 1000
X13: Brookland Infant School | Y13: 2008
X14: Brookland Junior School | Y14: 2007
X15: Brunswick Park School | Y15: 2009
X16: Chalgrove School | Y16: 2067
X17: Childs Hill School | Y17: 2010
X18: Christ Church CE School | Y18: 3302
X19: Church Hill School | Y19: 2011
X20: Colindale School | Y20: 2014
X21: Coppetts Wood School | Y21: 2015
X22: Courtland School | Y22: 2016
X23: Cromer Road School | Y23: 2017
X24: Danegrove School | Y24: 2073
X25: Deansbrook Infant School | Y25: 2019
X26: Dollis Infant School | Y26: 2021
D27: Contacts; | X27: Dollis Junior School | Y27: 5200
D28: Claudette James 0208 359 7132 | X28: Edgware Primary | Y28: 2023
D29: Nicole Gibson 0208 359 7223 Tues/Weds/Thurs | X29: Fairway School | Y29: 2024
X30: Finchley Catholic High School | Y30: 5405
X31: Foulds School | Y31: 2025
X32: Friern Barnet School | Y32: 4003
X33: Frith Manor School | Y33: 2026
X34: Garden Suburb Infant School | Y34: 2028
X35: Garden Suburb Junior School | Y35: 2027
X36: Goldbeaters School | Y36: 2029
X37: Hampden Way Nursery | Y37: 1001
X38: Hasmonean Primary School | Y38: 3516
X39: Hollickwood School | Y39: 2031
X40: Holly Park School | Y40: 2032
X41: Holy Trinity CE School | Y41: 3304
X42: JCoSS | Y42: 5427
X43: Livingstone School | Y43: 2036
X44: Manorside School | Y44: 2037
X45: Mapledown School | Y45: 7010
X46: Martin Primary | Y46: 3523
X47: Mathilda Marks Kennedy School | Y47: 5948
X48: Menorah Foundation School | Y48: 5949
X49: Menorah High School for Girls | Y49: 4004
X50: Menorah Primary School | Y50: 3513
X51: Monken Hadley CE School | Y51: 3305
X52: Monkfrith School | Y52: 2042
X53: Moss Hall Infant School | Y53: 2044
X54: Moss Hall Junior School | Y54: 2043
X55: Moss Hall Nursery | Y55: 1002
X56: Noam Primary School | Y56: 2053
X57: Northside School | Y57: 2045
X58: Northway School | Y58: 7005
X59: Oakleigh School | Y59: 7009
X60: Orion School | Y60: 2077
X61: Osidge School | Y61: 5201
X62: Our Lady of Lourdes RC School | Y62: 3501
X63: Pardes House School | Y63: 2078
X64: Queenswell Infant School | Y64: 2071
X65: Queenswell Junior School | Y65: 2072
X66: Rosh Pinah School | Y66: 3512
X67: Sacks Morasha | Y67: 2041
X68: Sacred Heart RC School | Y68: 3510
X69: St. Agnes' RC School | Y69: 3502
X70: St. Andrew's CE School | Y70: 3315
X71: St. Catherine's RC School | Y71: 3504
X72: St. James' Catholic High School | Y72: 5407
X73: St. John's CE School (N11) | Y73: 3307
X74: St. John's CE School (N20) | Y74: 3309
X75: St. Joseph's RC Primary School | Y75: 3509
X76: St. Margaret's Nursery | Y76: 1003
X77: St. Mary's & St. Johns Primary | Y77: 3521
X78: St. Mary's CE School (EN4) | Y78: 3312
X79: St. Mary's CE School (N3) | Y79: 3311
X80: St. Michael's Catholic Grammar School | Y80: 5404
X81: St. Paul's CE School (N11) | Y81: 3313
X82: St. Paul's CE School (NW7) | Y82: 3314
X83: St. Theresa's RC School | Y83: 3507
X84: St. Vincent's RC School | Y84: 3506
X85: Summerside School | Y85: 2052
X86: Sunnyfields School | Y86: 2070
X87: Trent CE School | Y87: 3316
X88: Tudor School | Y88: 2055
X89: Underhill School | Y89: 2057
X90: Wessex Gardens School | Y90: 2076
X91: Whitings Hill School | Y91: 2060
X92: Woodcroft Primary | Y92: 3518
X93: Woodridge School | Y93: 2054
X94: Northgate | Y94: 1102
X95: The Pavilion | Y95: 1100
X99: =COUNTA(X2:X95) -> 94

Sheet CFR Return
B3: School DfE No. | C3: ='FRONT PAGE'!$F$9 -> 0 | E3: ='FRONT PAGE'!$F$9 -> 0
A6: CFR Return - Division of Total Revenue and Capital Balances as at 31 March 2019
B8: School | C8: Cost Centre
B9: =VLOOKUP($C$3,$A$71:$C$175,2,0) ->  | C9: =VLOOKUP($C$3,$A$71:$C$175,3,0) -> 
A11: CFR Heading | B11: Description | C11: Balance as at 31.03.19
C12: £
A13: B01 | B13: Committed Revenue Balance
A14: B02 | B14: Uncommitted Revenue Balance
A15: B06 | B15: Community Focussed Extended Schl Bal
B16: Total Revenue Balance | C16: =VLOOKUP($C$9,'Ind Schs Balances 18-19'!$A$8:$J$113,3,0) -> 
A18: B03 | B18: Devolved Formula Capital Balance
A19: B05 | B19: Other Capital Balances
B21: Total Capital Balance | C21: =VLOOKUP($C$9,'Ind Schs Balances 18-19'!$A$8:$J$113,8,0) -> 
A24: Please enter figures to show the breakdown of your total revenue and total
A25: capital balance as at 31 March 2019
A28: B01 | B28: Committed Revenue Balances - This includes:
B29: Committed cumulative balance of income, less expenditure from revenue funding sources during the financial year and any committed revenue balances from previous years - this includes revenue funding received during previous financial years from specific grants
B30: Any unspent voluntary income
B31: Any unspent and committed pupil-focused extended school funding and/or grants
B32: Unspent amount of current financial year's Pupil Premium grant
A33: B02 | B33: Uncommitted Revenue Balance - Any revenue balances including
B34: the previous years not committed - Not including any balances from
B35: B01 or B06
A36: B06 | B36: Community Focussed Sch Balance - Any unspent
B37: community focussed school balances (I16 & I17 less E31 &
B38: E32)
A39: B03 | B39: Devolved Formula Capital Balance - Any Devolved
B40: Formula Capital funding not spent
A41: B05 | B41: Other Capital Balances - Other Capital balances not yet spent
B42: can include unspent Direct Revenue Finance or Private capital Income
A45: I certify that the above figures give a fair indication as to the division of our Total
A46: Revenue and Total Capital Balances as at 31 March 2019
A49: Prepared by | B49: _______________________________________
A50: Date | B50: _______________________________________
A51: Signed by Head Teacher | B51: _______________________________________
A52: Date | B52: _______________________________________
A57: Please scan and email to – Schools Accountancy at Schools.Accountancy@barnet.gov.uk (hard copies in the post are not acceptable). Please return this form via email to Accountancy - by Friday 14th June
B60: Contacts;
B61: Claudette James 0208 359 7132
B62: Nicole Gibson 0208 359 7223
A71: 1000 | B71: Brookhill Nursery | C71: 10130
A72: 1001 | B72: Hampden Way Nursery | C72: 10131
A73: 1002 | B73: Moss Hall Nursery | C73: 10132
A74: 1003 | B74: St Margaret's Nursery | C74: 10133
A75: 2000 | B75: Parkfield School | C75: 10120
A76: 2002 | B76: Barnfield School | C76: 10044
A77: 2003 | B77: Bell Lane School | C77: 10045
A78: 2007 | B78: Brookland Junior School | C78: 10046
A79: 2008 | B79: Brookland Infant School | C79: 10047
A80: 2009 | B80: Brunswick Park School | C80: 10048
A81: 2010 | B81: Childs Hill School | C81: 10049
A82: 2011 | B82: Church Hill School | C82: 10051
A83: 2014 | B83: Colindale School | C83: 10054
A84: 2015 | B84: Coppetts Wood School | C84: 10055
A85: 2016 | B85: Courtland School | C85: 10056
A86: 2017 | B86: Cromer Road School | C86: 10057
A87: 2018 | B87: Deansbrook Junior School | C87: 10058
A88: 2019 | B88: Deansbrook Infant School | C88: 10059
A89: 2021 | B89: Dollis Infant School | C89: 10061
A90: 2022 | B90: Edgware Junior School | C90: 10062
A91: 2023 | B91: Edgware Infant School | C91: 10063
A92: 2024 | B92: Fairway School | C92: 10064
A93: 2025 | B93: Foulds School | C93: 10065
A94: 2026 | B94: Frith Manor School | C94: 10066
A95: 2027 | B95: Garden Suburb Junior School | C95: 10067
A96: 2028 | B96: Garden Suburb Infant School | C96: 10068
A97: 2029 | B97: Goldbeaters School | C97: 10069
A98: 2031 | B98: Hollickwood School | C98: 10071
A99: 2032 | B99: Holly Park School | C99: 10072
A100: 2036 | B100: Livingstone School | C100: 10074
A101: 2037 | B101: Manorside School | C101: 10075
A102: 2041 | B102: Sacks Morasha | C102: 11381
A103: 2042 | B103: Monkfrith School | C103: 10079
A104: 2043 | B104: Moss Hall Junior School | C104: 10080
A105: 2044 | B105: Moss Hall Infant School | C105: 10081
A106: 2045 | B106: Northside School | C106: 10082
A107: 2052 | B107: Summerside School | C107: 10098
A108: 2053 | B108: Noam Primary School | C108: 10113
A109: 2054 | B109: Woodridge School | C109: 10109
A110: 2055 | B110: Tudor School | C110: 10101
A111: 2056 | B111: Underhill Junior School | C111: 10102
A112: 2057 | B112: Underhill Infant School | C112: 10103
A113: 2060 | B113: Whitings Hill School | C113: 10105
A114: 2067 | B114: Chalgrove School | C114: 10118
A115: 2070 | B115: Sunnyfields School | C115: 10097
A116: 2071 | B116: Queenswell Infant School | C116: 10119
A117: 2072 | B117: Queenswell Junior School | C117: 10086
A118: 2073 | B118: Danegrove School | C118: 10083
A119: 2074 | B119: Hyde School | C119: 10122
A120: 2076 | B120: Wessex Gardens School | C120: 10124
A121: 2077 | B121: Orion School | C121: 10127
A122: 2078 | B122: Pardes House School | C122: 10129
A123: 2079 | B123: Beis Yaakov | C123: 10128
A124: 3300 | B124: All Saints' CE School (NW2) | C124: 10040
A125: 3302 | B125: Christ Church CE School | C125: 10050
A126: 3304 | B126: Holy Trinity CE School | C126: 10073
A127: 3305 | B127: Monken Hadley CE School | C127: 10078
A128: 3307 | B128: St. John's CE School (N11) | C128: 10089
A129: 3309 | B129: St. John's CE School (N20) | C129: 10116
A130: 3311 | B130: St. Mary's CE School (N3) | C130: 10092
A131: 3312 | B131: St. Mary's CE School (EN4) | C131: 10093
A132: 3313 | B132: St. Paul's CE School (N11) | C132: 10094
A133: 3314 | B133: St. Paul's CE School (NW7) | C133: 10095
A134: 3315 | B134: St. Andrew's CE School | C134: 10099
A135: 3316 | B135: Trent CE School | C135: 10100
A136: 3317 | B136: All Saints' CE School (N20) | C136: 10042
A137: 3500 | B137: Annunciation RC Infant School | C137: 10043
A138: 3501 | B138: Our Lady of Lourdes RC School | C138: 10085
A139: 3502 | B139: St. Agnes' RC School | C139: 10087
A140: 3504 | B140: St. Catherine's RC School | C140: 10088
A141: 3506 | B141: St. Vincent's RC School | C141: 10096
A142: 3507 | B142: St. Theresa's RC School | C142: 10108
A143: 3508 | B143: St. Joseph's RC Infant School | C143: 10111
A144: 3509 | B144: St. Joseph's RC Junior School | C144: 10107
A145: 3510 | B145: Sacred Heart RC School | C145: 10110
A146: 3511 | B146: Blessed Dominic RC School | C146: 10115
A147: 3512 | B147: Rosh Pinah School | C147: 10112
A148: 3513 | B148: Menorah Primary School | C148: 10114
A149: 3514 | B149: Annunciation RC Junior School | C149: 10117
A150: 3516 | B150: Hasmonean Primary School | C150: 10121
A151: 3518 | B151: Woodcroft Primary | C151: 10123
A152: 3519 | B152: Broadfields Primary | C152: 10134
A153: 3520 | B153: Akiva | C153: 11094
A154: 3521 | B154: St. Mary's & St. Johns Primary | C154: 10698
A155: 3522 | B155: Claremont Primary | C155: 10953
A156: 3523 | B156: Martin Primary | C156: 11093
A157: 3524 | B157: Beit Shvidler | C157: 11278
A158: 4003 | B158: Friern Barnet School | C158: 10139
A159: 4004 | B159: Menorah High School for Girls | C159: 11513
A160: 5200 | B160: Dollis Junior School | C160: 10060
A161: 5201 | B161: Osidge School | C161: 10084
A162: 5403 | B162: St Mary's CE High School | C162: 10143
A163: 5404 | B163: St. Michael's Catholic Grammar School | C163: 10148
A164: 5405 | B164: Finchley Catholic High School | C164: 10145
A165: 5407 | B165: St James' Catholic High School | C165: 10142
A166: 5408 | B166: Bishop Douglass RC High | C166: 10137
A167: 5427 | B167: JCoSS | C167: 11174
A168: 5948 | B168: Mathilda Marks Kennedy School | C168: 10125
A169: 5949 | B169: Menorah Foundation School | C169: 10126
A170: 7000 | B170: Oak Lodge School | C170: 10156
A171: 7005 | B171: Northway School | C171: 10157
A172: 7009 | B172: Oakleigh School | C172: 10158
A173: 7010 | B173: Mapledown School | C173: 10159
A174: 1102 | B174: Northgate | C174: 10185
A175: 1100 | B175: The Pavilion | C175: 10188

Sheet Ind Schs Balances 18-19
A1: 1 | B1: 2 | C1: 3 | D1: 4 | E1: 5 | F1: 6 | G1: 7 | H1: 8 | I1: 9 | J1: 10 | K1: 11 | L1: 12 | M1: 13 | N1: 14 | O1: 15 | P1: 16
B2: Final Individual School Outturn Balances 2018-19
C3: Revenue | H3: Capital | L3: Total Balance | O3: Revenue Balance as % of Total Income
B4: School | C4: As at 31.03.19 | D4: As at 31.03.18 | E4: Balance as % Final Budget Share 14-15 | F4: Increase / (decrease) | H4: As at 31.03.19 | I4: As at 31.03.18 | J4: Increase / (decrease) | L4: As at 31.03.19 | M4: As at 31.03.18 | N4: Increase / (decrease) | O4: School income 2018-19* | P4: % Outturn against Income
A5: 10130 | B5: Brookhill | C5: =VLOOKUP(A5,'[50]balances from P12 EOY'!$B$6:$X$103,20,0) ->  | D5: =[51]Brk!$H$66 -> 156379.92 | E5: 0 | F5: =C5-D5 ->  | H5: =VLOOKUP(A5,'[50]balances from P12 EOY'!$B$6:$X$103,22,0) -> 0 | I5: =[51]Brk!$H$76 -> 4720.55 | J5: =H5-I5 -> -4720.55 | L5: =C5+H5 ->  | M5: 161100.47 | N5: =L5-M5 ->  | O5: =VLOOKUP(A5,'[50]FUNDING ONLY'!$A$8:$J$98,10,0) ->  | P5: =L5/O5 -> 
A6: 10131 | B6: Hampden Way | C6: =VLOOKUP(A6,'[50]balances from P12 EOY'!$B$6:$X$103,20,0) ->  | D6: =[51]Hmp!$H$70 -> 168833.62 | E6: 0 | F6: =C6-D6 ->  | H6: =VLOOKUP(A6,'[50]balances from P12 EOY'!$B$6:$X$103,22,0) -> 0 | I6: =[51]Hmp!$H$81 -> 3841.38 | J6: =H6-I6 -> -3841.38 | M6: 172675 | N6: =L6-M6 ->  | O6: =VLOOKUP(A6,'[50]FUNDING ONLY'!$A$8:$J$98,10,0) ->  | P6: =L6/O6 -> 
A7: 10133 | B7: St Margarets | C7: =VLOOKUP(A7,'[50]balances from P12 EOY'!$B$6:$X$103,20,0) ->  | D7: =[51]StM!$H$67 -> 14131.35 | E7: 0 | F7: =C7-D7 ->  | H7: =VLOOKUP(A7,'[50]balances from P12 EOY'!$B$6:$X$103,22,0) -> 0 | I7: =[51]StM!$H$79 -> 5855.55 | J7: =H7-I7 -> -5855.55 | M7: 19986.9 | N7: =L7-M7 ->  | O7: =VLOOKUP(A7,'[50]FUNDING ONLY'!$A$8:$J$98,10,0) ->  | P7: =L7/O7 -> 
A8: 10135 | B8: BEYA | C8: =VLOOKUP(A8,'[50]balances from P12 EOY'!$B$6:$X$103,20,0) -> 419513.49 | D8: =SUM(D5:D7) -> 339344.89 | E8: 0 | F8: =C8-D8 -> 80168.6 | H8: =VLOOKUP(A8,'[50]balances from P12 EOY'!$B$6:$X$103,22,0) -> 58866.55 | I8: =SUM(I5:I7) -> 14417.48 | J8: =H8-I8 -> 44449.07 | L8: 478380.04 | M8: 353762.37 | N8: =L8-M8 -> 124617.67 | O8: =VLOOKUP(A8,'[50]CFR ANALYSIS REVENUE INCOME '!$A$4:$S$97,19,0) -> 2331715.52 | P8: =C8/O8 -> 0.1799162404
A9: 10132 | B9: Moss Hall Nursery | C9: =VLOOKUP(A9,'[50]balances from P12 EOY'!$B$6:$X$103,20,0) -> 228364.28 | D9: =[51]MHN!$H$70 -> 304596.52 | E9: 0 | F9: =C9-D9 -> -76232.24 | H9: =VLOOKUP(A9,'[50]balances from P12 EOY'!$B$6:$X$103,22,0) -> 17589.92 | I9: =[51]MHN!$H$81 -> 9136.26 | J9: =H9-I9 -> 8453.66 | L9: 245954.2 | M9: 313732.78 | N9: =L9-M9 -> -67778.58 | O9: =VLOOKUP(A9,'[50]CFR ANALYSIS REVENUE INCOME '!$A$4:$S$97,19,0) -> 610971.97 | P9: =C9/O9 -> 0.3737721061
B11: Sub Total - Nursery Sector | C11: =SUM(C8:C9) -> 647877.77 | D11: =SUM(D8:D9) -> 643941.41 | E11: =SUM(E8:E9) -> 0 | F11: =SUM(F8:F9) -> 3936.36 | H11: =SUM(H8:H9) -> 76456.47 | I11: =SUM(I8:I9) -> 23553.74 | J11: 52902.73 | K11: 0 | L11: 724334.24 | M11: 667495.15 | N11: 56839.09 | O11: 2942687.49 | P11: =C11/O11 -> 0.2201653326
A13: 11094 | B13: Akiva | C13: =VLOOKUP(A13,'[50]balances from P12 EOY'!$B$6:$X$103,20,0) -> 114819.83 | D13: =[51]Akv!$H$72 -> 37544.6 | E13: 0 | F13: =C13-D13 -> 77275.23 | H13: =VLOOKUP(A13,'[50]balances from P12 EOY'!$B$6:$X$103,22,0) -> 0 | I13: 0 | J13: =H13-I13 -> 0 | L13: =C13+H13 -> 114819.83 | M13: 37544.6 | N13: =L13-M13 -> 77275.23 | O13: =VLOOKUP(A13,'[50]CFR ANALYSIS REVENUE INCOME '!$A$4:$S$97,19,0) -> 2572927.97 | P13: =C13/O13 -> 0.04462613464
A14: 10042 | B14: All Saints' CE School (N20) | C14: =VLOOKUP(A14,'[50]balances from P12 EOY'!$B$6:$X$103,20,0) -> 89708.58 | D14: =[51]AstN20!$H$72 -> 123256.73 | E14: 0 | F14: -33548.15 | H14: =VLOOKUP(A14,'[50]balances from P12 EOY'!$B$6:$X$103,22,0) -> 0 | I14: =[51]AstN20!$H$83 -> 0 | J14: 0 | L14: 89708.58 | M14: 123256.73 | N14: -33548.15 | O14: =VLOOKUP(A14,'[50]CFR ANALYSIS REVENUE INCOME '!$A$4:$S$97,19,0) -> 1484838.01 | P14: =C14/O14 -> 0.06041640866
A15: 10040 | B15: All Saints' CE School (NW2) | C15: =VLOOKUP(A15,'[50]balances from P12 EOY'!$B$6:$X$103,20,0) -> 31136.47 | D15: =[51]AstNW2!$H$71 -> 106584.36 | E15: 0 | F15: -75447.89 | H15: =VLOOKUP(A15,'[50]balances from P12 EOY'!$B$6:$X$103,22,0) -> 0 | I15: =[51]AstNW2!$H$81 -> 0 | J15: 0 | L15: 31136.47 | M15: 106584.36 | N15: -75447.89 | O15: =VLOOKUP(A15,'[50]CFR ANALYSIS REVENUE INCOME '!$A$4:$S$97,19,0) -> 1148436.65 | P15: 0.02711204837
A16: 10043 | B16: Annunciation RC Infant School | C16: =VLOOKUP(A16,'[50]balances from P12 EOY'!$B$6:$X$103,20,0) -> 211077.57 | D16: =[51]AnnI!$H$65 -> 175894.23 | E16: 0 | F16: 35183.34 | H16: =VLOOKUP(A16,'[50]balances from P12 EOY'!$B$6:$X$103,22,0) -> 0 | I16: 0 | J16: 0 | L16: 211077.57 | M16: 175894.23 | N16: 35183.34 | O16: =VLOOKUP(A16,'[50]CFR ANALYSIS REVENUE INCOME '!$A$4:$S$97,19,0) -> 1094971.86 | P16: 0.192769858
A17: 10117 | B17: Annunciation RC Junior School | C17: =VLOOKUP(A17,'[50]balances from P12 EOY'!$B$6:$X$103,20,0) -> 170575.05 | D17: =[51]AnnJ!$H$70 -> 103114.32 | E17: 0 | F17: 67460.73 | H17: =VLOOKUP(A17,'[50]balances from P12 EOY'!$B$6:$X$103,22,0) -> 0 | I17: 0 | J17: 0 | L17: 170575.05 | M17: 103114.32 | N17: 67460.73 | O17: =VLOOKUP(A17,'[50]CFR ANALYSIS REVENUE INCOME '!$A$4:$S$97,19,0) -> 1154991.25 | P17: 0.1476851448
A18: 10044 | B18: Barnfield School | C18: =VLOOKUP(A18,'[50]balances from P12 EOY'!$B$6:$X$103,20,0) -> 393539.07 | D18: =[51]Barnf!$H$75 -> 411190.28 | E18: 0 | F18: -17651.21 | H18: =VLOOKUP(A18,'[50]balances from P12 EOY'!$B$6:$X$103,22,0) -> 9306.17 | I18: =[51]Barnf!$H$87 -> -1.09 | J18: 9307.26 | L18: 402845.24 | M18: 411189.19 | N18: -8343.95 | O18: =VLOOKUP(A18,'[50]CFR ANALYSIS REVENUE INCOME '!$A$4:$S$97,19,0) -> 3063175.61 | P18: 0.1284742111
A19: 10128 | B19: Beis Yaakov | C19: =VLOOKUP(A19,'[50]balances from P12 EOY'!$B$6:$X$103,20,0) -> 112118.69 | D19: =[51]BYaak!$H$70 -> 55568.34 | E19: 0 | F19: 56550.35 | H19: =VLOOKUP(A19,'[50]balances from P12 EOY'!$B$6:$X$103,22,0) -> 0 | I19: 0 | J19: 0 | L19: 112118.69 | M19: 55568.34 | N19: 56550.35 | O19: =VLOOKUP(A19,'[50]CFR ANALYSIS REVENUE INCOME '!$A$4:$S$97,19,0) -> 2131459.43 | P19: 0.05260184098
A20: 11278 | B20: Beit Shvidler Jewish Primary | C20: =VLOOKUP(A20,'[50]balances from P12 EOY'!$B$6:$X$103,20,0) -> 272.49 | D20: =[51]BeitShv!$H$69 -> 72683.38 | E20: 0 | F20: -72410.89 | H20: =VLOOKUP(A20,'[50]balances from P12 EOY'!$B$6:$X$103,22,0) -> -0.23 | I20: 0 | J20: -0.23 | L20: 272.26 | M20: 72683.38 | N20: -72411.12 | O20: =VLOOKUP(A20,'[50]CFR ANALYSIS REVENUE INCOME '!$A$4:$S$97,19,0) -> 1694012.71 | P20: 0.0001608547553
A21: 10045 | B21: Bell Lane School | C21: =VLOOKUP(A21,'[50]balances from P12 EOY'!$B$6:$X$103,20,0) -> 9828.55 | D21: =[51]Bell!$H$76 -> 100729.37 | E21: 0 | F21: -90900.82 | H21: =VLOOKUP(A21,'[50]balances from P12 EOY'!$B$6:$X$103,22,0) -> 24220.88 | I21: =[51]Bell!$H$89 -> 979.74 | J21: 23241.14 | L21: 34049.43 | M21: 101709.11 | N21: -67659.68 | O21: =VLOOKUP(A21,'[50]CFR ANALYSIS REVENUE INCOME '!$A$4:$S$97,19,0) -> 2650183.1 | P21: 0.003708630547
A22: 10115 | B22: Blessed Dominic RC School | C22: =VLOOKUP(A22,'[50]balances from P12 EOY'!$B$6:$X$103,20,0) -> 380699.33 | D22: =[51]BDom!$H$72 -> 214487.75 | E22: 0 | F22: 166211.58 | H22: =VLOOKUP(A22,'[50]balances from P12 EOY'!$B$6:$X$103,22,0) -> 1 | I22: =[51]BDom!$H$78 -> 1 | J22: 0 | L22: 380700.33 | M22: 214488.75 | N22: 166211.58 | O22: =VLOOKUP(A22,'[50]CFR ANALYSIS REVENUE INCOME '!$A$4:$S$97,19,0) -> 2533577.28 | P22: 0.1502615819
A23: 10047 | B23: Brookland Infant School | C23: =VLOOKUP(A23,'[50]balances from P12 EOY'!$B$6:$X$103,20,0) -> 137149.68 | D23: =[51]BrookI!$H$71 -> 118776.9 | E23: 0 | F23: 18372.78 | H23: =VLOOKUP(A23,'[50]balances from P12 EOY'!$B$6:$X$103,22,0) -> 16994.12 | I23: =[51]BrookI!$H$81 -> 9148 | J23: 7846.12 | L23: 154143.8 | M23: 127924.9 | N23: 26218.9 | O23: =VLOOKUP(A23,'[50]CFR ANALYSIS REVENUE INCOME '!$A$4:$S$97,19,0) -> 1749185.21 | P23: 0.07840775192
A24: 10046 | B24: Brookland Junior School | C24: =VLOOKUP(A24,'[50]balances from P12 EOY'!$B$6:$X$103,20,0) -> 159321.4 | D24: =[51]BrookJ!$H$73 -> 154040.27 | E24: 0 | F24: 5281.13 | H24: =VLOOKUP(A24,'[50]balances from P12 EOY'!$B$6:$X$103,22,0) -> 7148.89 | I24: =[51]BrookJ!$H$84 -> -0.05 | J24: 7148.94 | L24: 166470.29 | M24: 154040.22 | N24: 12430.07 | O24: =VLOOKUP(A24,'[50]CFR ANALYSIS REVENUE INCOME '!$A$4:$S$97,19,0) -> 1854665.9 | P24: 0.08590301898
A25: 10048 | B25: Brunswick Park School | C25: =VLOOKUP(A25,'[50]balances from P12 EOY'!$B$6:$X$103,20,0) -> 198361.54 | D25: =[51]BrunsP!$H$72 -> 265273.83 | E25: 0 | F25: -66912.29 | H25: =VLOOKUP(A25,'[50]balances from P12 EOY'!$B$6:$X$103,22,0) -> 17664.26 | I25: =[51]BrunsP!$H$85 -> 1546.3 | J25: 16117.96 | L25: 216025.8 | M25: 266820.13 | N25: -50794.33 | O25: =VLOOKUP(A25,'[50]CFR ANALYSIS REVENUE INCOME '!$A$4:$S$97,19,0) -> 2671533.53 | P25: 0.07425006565
A26: 10118 | B26: Chalgrove School | C26: =VLOOKUP(A26,'[50]balances from P12 EOY'!$B$6:$X$103,20,0) -> 123089.43 | D26: =[51]Chal!$H$72 -> 113348.11 | E26: 0 | F26: 9741.32 | H26: =VLOOKUP(A26,'[50]balances from P12 EOY'!$B$6:$X$103,22,0) -> -0.35 | I26: =[51]Chal!$H$83 -> 6956.75 | J26: -6957.1 | L26: 123089.08 | M26: 120304.86 | N26: 2784.22 | O26: =VLOOKUP(A26,'[50]CFR ANALYSIS REVENUE INCOME '!$A$4:$S$97,19,0) -> 1596931.07 | P26: 0.07707873703
A27: 10049 | B27: Childs Hill School | C27: =VLOOKUP(A27,'[50]balances from P12 EOY'!$B$6:$X$103,20,0) -> 57091.01 | D27: =[51]ChildsH!$H$73 -> 6740.54 | E27: 0 | F27: 50350.47 | H27: =VLOOKUP(A27,'[50]balances from P12 EOY'!$B$6:$X$103,22,0) -> 15425.48 | I27: =[51]ChildsH!$H$84 -> 0 | J27: 15425.48 | L27: 72516.49 | M27: 6740.54 | N27: 65775.95 | O27: =VLOOKUP(A27,'[50]CFR ANALYSIS REVENUE INCOME '!$A$4:$S$97,19,0) -> 2813377.5 | P27: 0.02029269446
A28: 10050 | B28: Christ Church CE School | C28: =VLOOKUP(A28,'[50]balances from P12 EOY'!$B$6:$X$103,20,0) -> 305864.53 | D28: =[51]ChristC!$H$69 -> 262448.06 | E28: 0 | F28: 43416.47 | H28: =VLOOKUP(A28,'[50]balances from P12 EOY'!$B$6:$X$103,22,0) -> 0 | I28: =[51]ChildsH!$H$84 -> 0 | J28: 0 | L28: 305864.53 | M28: 262448.06 | N28: 43416.47 | O28: =VLOOKUP(A28,'[50]CFR ANALYSIS REVENUE INCOME '!$A$4:$S$97,19,0) -> 1239774.74 | P28: 0.2467097612
A29: 10051 | B29: Church Hill School | C29: =VLOOKUP(A29,'[50]balances from P12 EOY'!$B$6:$X$103,20,0) -> -63377.67 | D29: =[51]ChurchH!$H$70 -> 71783.81 | E29: 0 | F29: -135161.48 | H29: =VLOOKUP(A29,'[50]balances from P12 EOY'!$B$6:$X$103,22,0) -> 0.45 | I29: =[51]ChurchH!$H$81 -> -0.25 | J29: 0.7 | L29: -63377.22 | M29: 71783.56 | N29: -135160.78 | O29: =VLOOKUP(A29,'[50]CFR ANALYSIS REVENUE INCOME '!$A$4:$S$97,19,0) -> 1249785.73 | P29: -0.05071082865
A30: 10054 | B30: Colindale School | C30: =VLOOKUP(A30,'[50]balances from P12 EOY'!$B$6:$X$103,20,0) -> 499415.11 | D30: =[51]Colin!$H$72 -> 500697.82 | E30: 0 | F30: -1282.71 | H30: =VLOOKUP(A30,'[50]balances from P12 EOY'!$B$6:$X$103,22,0) -> 13174.08 | I30: =[51]Colin!$H$85 -> 0 | J30: 13174.08 | L30: 512589.19 | M30: 500697.82 | N30: 11891.37 | O30: =VLOOKUP(A30,'[50]CFR ANALYSIS REVENUE INCOME '!$A$4:$S$97,19,0) -> 4224334.44 | P30: 0.1182233834
A31: 10055 | B31: Coppetts Wood School | C31: =VLOOKUP(A31,'[50]balances from P12 EOY'!$B$6:$X$103,20,0) -> 453369.01 | D31: =[51]Coppet!$H$76 -> 445664.48 | E31: 0 | F31: 7704.53 | H31: =VLOOKUP(A31,'[50]balances from P12 EOY'!$B$6:$X$103,22,0) -> 13645 | I31: =[51]Coppet!$H$87 -> 14118 | J31: -473 | L31: 467014.01 | M31: 459782.48 | N31: 7231.53 | O31: =VLOOKUP(A31,'[50]CFR ANALYSIS REVENUE INCOME '!$A$4:$S$97,19,0) -> 2191768.26 | P31: 0.2068507964
A32: 10056 | B32: Courtland School | C32: =VLOOKUP(A32,'[50]balances from P12 EOY'!$B$6:$X$103,20,0) -> 97507.69 | D32: =[51]Court!$H$74 -> 92609.3 | E32: 0 | F32: 4898.39 | H32: =VLOOKUP(A32,'[50]balances from P12 EOY'!$B$6:$X$103,22,0) -> 12191.2 | I32: =[51]Court!$H$86 -> 0.66 | J32: 12190.54 | L32: 109698.89 | M32: 92609.96 | N32: 17088.93 | O32: =VLOOKUP(A32,'[50]CFR ANALYSIS REVENUE INCOME '!$A$4:$S$97,19,0) -> 1193194.56 | P32: 0.08171985799
A33: 10057 | B33: Cromer Road School | C33: =VLOOKUP(A33,'[50]balances from P12 EOY'!$B$6:$X$103,20,0) -> 41632.24 | D33: =[51]Cromer!$H$71 -> 173552.5 | E33: 0 | F33: -131920.26 | H33: =VLOOKUP(A33,'[50]balances from P12 EOY'!$B$6:$X$103,22,0) -> 3401.39 | I33: =[51]Cromer!$H$82 -> 14872.5 | J33: -11471.11 | L33: 45033.63 | M33: 188425 | N33: -143391.37 | O33: =VLOOKUP(A33,'[50]CFR ANALYSIS REVENUE INCOME '!$A$4:$S$97,19,0) -> 2181030.82 | P33: 0.01908833182
A34: 10083 | B34: Danegrove School | C34: =VLOOKUP(A34,'[50]balances from P12 EOY'!$B$6:$X$103,20,0) -> 396844.68 | D34: =[51]Daneg!$H$72 -> 351920.21 | E34: 0 | F34: 44924.47 | H34: =VLOOKUP(A34,'[50]balances from P12 EOY'!$B$6:$X$103,22,0) -> 36084.6 | I34: =[51]Daneg!$H$82 -> 647.25 | J34: 35437.35 | L34: 432929.28 | M34: 352567.46 | N34: 80361.82 | O34: =VLOOKUP(A34,'[50]CFR ANALYSIS REVENUE INCOME '!$A$4:$S$97,19,0) -> 3523139.9 | P34: 0.1126394896
A35: 10059 | B35: Deansbrook Infant School | C35: =VLOOKUP(A35,'[50]balances from P12 EOY'!$B$6:$X$103,20,0) -> 175544.97 | D35: =[51]DeansI!$H$70 -> 116843.48 | E35: 0 | F35: 58701.49 | H35: =VLOOKUP(A35,'[50]balances from P12 EOY'!$B$6:$X$103,22,0) -> 16265.81 | I35: =[51]DeansI!$H$81 -> 13770 | J35: 2495.81 | L35: 191810.78 | M35: 130613.48 | N35: 61197.3 | O35: =VLOOKUP(A35,'[50]CFR ANALYSIS REVENUE INCOME '!$A$4:$S$97,19,0) -> 1737755.44 | P35: 0.101018225
A36: 10061 | B36: Dollis Infant School | C36: =VLOOKUP(A36,'[50]balances from P12 EOY'!$B$6:$X$103,20,0) -> 201376.68 | D36: =[51]DollisI!$H$72 -> 184963.85 | E36: 0 | F36: 16412.83 | H36: =VLOOKUP(A36,'[50]balances from P12 EOY'!$B$6:$X$103,22,0) -> 22953.37 | I36: =[51]DollisI!$H$82 -> 14581.35 | J36: 8372.02 | L36: 224330.05 | M36: 199545.2 | N36: 24784.85 | O36: =VLOOKUP(A36,'[50]CFR ANALYSIS REVENUE INCOME '!$A$4:$S$97,19,0) -> 1661051.82 | P36: 0.1212344357
A37: 10060 | B37: Dollis Junior School | C37: =VLOOKUP(A37,'[50]balances from P12 EOY'!$B$6:$X$103,20,0) -> 119157.27 | D37: =[51]DollisJ!$H$70 -> 61398.24 | E37: 0 | F37: 57759.03 | H37: =VLOOKUP(A37,'[50]balances from P12 EOY'!$B$6:$X$103,22,0) -> 12486.86 | I37: =[51]DollisJ!$H$81 -> 6403.5 | J37: 6083.36 | L37: 131644.13 | M37: 67801.74 | N37: 63842.39 | O37: =VLOOKUP(A37,'[50]CFR ANALYSIS REVENUE INCOME '!$A$4:$S$97,19,0) -> 2070510.01 | P37: 0.05754971936
A38: 10063 | B38: Edgware Primary | C38: =VLOOKUP(A38,'[50]balances from P12 EOY'!$B$6:$X$103,20,0) -> 91594.95 | D38: =[51]EdgwP!$H$72 -> 56561.46 | E38: 0 | F38: 35033.49 | H38: =VLOOKUP(A38,'[50]balances from P12 EOY'!$B$6:$X$103,22,0) -> -0.09 | I38: =[51]EdgwP!$H$85 -> 0.37 | J38: -0.46 | L38: 91594.86 | M38: 56561.83 | N38: 35033.03 | O38: =VLOOKUP(A38,'[50]CFR ANALYSIS REVENUE INCOME '!$A$4:$S$97,19,0) -> 3480624.22 | P38: 0.0263156676
A39: 10064 | B39: Fairway School | C39: =VLOOKUP(A39,'[50]balances from P12 EOY'!$B$6:$X$103,20,0) -> 139564.7 | D39: =[51]Fair!$H$75 -> 167149.75 | E39: 0 | F39: -27585.05 | H39: =VLOOKUP(A39,'[50]balances from P12 EOY'!$B$6:$X$103,22,0) -> 15853.93 | I39: =[51]Fair!$H$86 -> 21468.89 | J39: -5614.96 | L39: 155418.63 | M39: 188618.64 | N39: -33200.01 | O39: =VLOOKUP(A39,'[50]CFR ANALYSIS REVENUE INCOME '!$A$4:$S$97,19,0) -> 2169879.76 | P39: 0.06431909388
A40: 10065 | B40: Foulds School | C40: =VLOOKUP(A40,'[50]balances from P12 EOY'!$B$6:$X$103,20,0) -> 124643.8 | D40: =[51]Fould!$H$72 -> 171440.37 | E40: 0 | F40: -46796.57 | H40: =VLOOKUP(A40,'[50]balances from P12 EOY'!$B$6:$X$103,22,0) -> -0.73 | I40: =[51]Fould!$H$85 -> 10533.75 | J40: -10534.48 | L40: 124643.07 | M40: 181974.12 | N40: -57331.05 | O40: =VLOOKUP(A40,'[50]CFR ANALYSIS REVENUE INCOME '!$A$4:$S$97,19,0) -> 1564373.17 | P40: 0.0796765135
A41: 10066 | B41: Frith Manor School | C41: =VLOOKUP(A41,'[50]balances from P12 EOY'!$B$6:$X$103,20,0) -> -3577.97 | D41: =[51]Frith!$H$69 -> -2176.66 | E41: 0 | F41: -1401.31 | H41: =VLOOKUP(A41,'[50]balances from P12 EOY'!$B$6:$X$103,22,0) -> 28503.33 | I41: =[51]Frith!$H$81 -> 21611.31 | J41: 6892.02 | L41: 24925.36 | M41: 19434.65 | N41: 5490.71 | O41: =VLOOKUP(A41,'[50]CFR ANALYSIS REVENUE INCOME '!$A$4:$S$97,19,0) -> 3164926.73 | P41: -0.001130506424
A42: 10068 | B42: Garden Suburb Infant School | C42: =VLOOKUP(A42,'[50]balances from P12 EOY'!$B$6:$X$103,20,0) -> 49529.63 | D42: =[51]GSubI!$H$71 -> 31127.15 | E42: 0 | F42: 18402.48 | H42: =VLOOKUP(A42,'[50]balances from P12 EOY'!$B$6:$X$103,22,0) -> 11602.89 | I42: =[51]GSubI!$H$83 -> 17070.75 | J42: -5467.86 | L42: 61132.52 | M42: 48197.9 | N42: 12934.62 | O42: =VLOOKUP(A42,'[50]CFR ANALYSIS REVENUE INCOME '!$A$4:$S$97,19,0) -> 1411885.28 | P42: 0.03508049181
A43: 10067 | B43: Garden Suburb Junior School | C43: =VLOOKUP(A43,'[50]balances from P12 EOY'!$B$6:$X$103,20,0) -> 97774.73 | D43: =[51]GSubJ!$H$72 -> 139042.54 | E43: 0 | F43: -41267.81 | H43: =VLOOKUP(A43,'[50]balances from P12 EOY'!$B$6:$X$103,22,0) -> 9695.56 | I43: =[51]GSubJ!$H$84 -> 10119.25 | J43: -423.69 | L43: 107470.29 | M43: 149161.79 | N43: -41691.5 | O43: =VLOOKUP(A43,'[50]CFR ANALYSIS REVENUE INCOME '!$A$4:$S$97,19,0) -> 1825265.92 | P43: 0.05356738924
A44: 10069 | B44: Goldbeaters School | C44: =VLOOKUP(A44,'[50]balances from P12 EOY'!$B$6:$X$103,20,0) -> 35399.12 | D44: =[51]Gold!$H$72 -> 59289.67 | E44: 0 | F44: -23890.55 | H44: =VLOOKUP(A44,'[50]balances from P12 EOY'!$B$6:$X$103,22,0) -> 27606.23 | I44: =[51]Gold!$H$84 -> 8467.05 | J44: 19139.18 | L44: 63005.35 | M44: 67756.72 | N44: -4751.37 | O44: =VLOOKUP(A44,'[50]CFR ANALYSIS REVENUE INCOME '!$A$4:$S$97,19,0) -> 2814239.44 | P44: 0.01257857434
A45: 10121 | B45: Hasmonean Primary School | C45: =VLOOKUP(A45,'[50]balances from P12 EOY'!$B$6:$X$103,20,0) -> 16888.19 | D45: =[51]HasmoP!$H$70 -> -21033.83 | E45: 0 | F45: 37922.02 | H45: =VLOOKUP(A45,'[50]balances from P12 EOY'!$B$6:$X$103,22,0) -> 0 | I45: 0 | J45: 0 | L45: =C45+H45 -> 16888.19 | M45: -21033.83 | N45: 37922.02 | O45: =VLOOKUP(A45,'[50]CFR ANALYSIS REVENUE INCOME '!$A$4:$S$97,19,0) -> 1300060.96 | P45: 0.01299030624
A46: 10071 | B46: Hollickwood School | C46: =VLOOKUP(A46,'[50]balances from P12 EOY'!$B$6:$X$103,20,0) -> 60241.09 | D46: =[51]Hollick!$H$71 -> 111210.9 | E46: 0 | F46: -50969.81 | H46: =VLOOKUP(A46,'[50]balances from P12 EOY'!$B$6:$X$103,22,0) -> 13435.35 | I46: =[51]Hollick!$H$82 -> 14316.75 | J46: -881.4 | L46: 73676.44 | M46: 125527.65 | N46: -51851.21 | O46: =VLOOKUP(A46,'[50]CFR ANALYSIS REVENUE INCOME '!$A$4:$S$97,19,0) -> 1442136.12 | P46: 0.04177212481
A47: 10072 | B47: Holly Park School | C47: =VLOOKUP(A47,'[50]balances from P12 EOY'!$B$6:$X$103,20,0) -> 227343.83 | D47: =[51]HollyP!$H$70 -> 158878.42 | E47: 0 | F47: 68465.41 | H47: =VLOOKUP(A47,'[50]balances from P12 EOY'!$B$6:$X$103,22,0) -> 19454.73 | I47: =[51]HollyP!$H$80 -> 13 | J47: 19441.73 | L47: 246798.56 | M47: 158891.42 | N47: 87907.14 | O47: =VLOOKUP(A47,'[50]CFR ANALYSIS REVENUE INCOME '!$A$4:$S$97,19,0) -> 2874445.68 | P47: 0.07909136415
A48: 10073 | B48: Holy Trinity CE School | C48: =VLOOKUP(A48,'[50]balances from P12 EOY'!$B$6:$X$103,20,0) -> 208562.98 | D48: =[51]Holy!$H$71 -> 132956.74 | E48: 0 | F48: 75606.24 | H48: =VLOOKUP(A48,'[50]balances from P12 EOY'!$B$6:$X$103,22,0) -> -1 | I48: =[51]Holy!$H$81 -> -1 | J48: 0 | L48: 208561.98 | M48: 132955.74 | N48: 75606.24 | O48: =VLOOKUP(A48,'[50]CFR ANALYSIS REVENUE INCOME '!$A$4:$S$97,19,0) -> 1529039.37 | P48: 0.1364013145
A49: 10074 | B49: Livingstone School | C49: =VLOOKUP(A49,'[50]balances from P12 EOY'!$B$6:$X$103,20,0) -> 446061.61 | D49: =[51]Living!$H$70 -> 528877.25 | E49: 0 | F49: -82815.64 | H49: =VLOOKUP(A49,'[50]balances from P12 EOY'!$B$6:$X$103,22,0) -> 0 | I49: =[51]Living!$H$81 -> 3.492459655e-12 | J49: -3.492459655e-12 | L49: 446061.61 | M49: 528877.25 | N49: -82815.64 | O49: =VLOOKUP(A49,'[50]CFR ANALYSIS REVENUE INCOME '!$A$4:$S$97,19,0) -> 2448794.86 | P49: 0.1821555645
A50: 10075 | B50: Manorside School | C50: =VLOOKUP(A50,'[50]balances from P12 EOY'!$B$6:$X$103,20,0) -> 63988.19 | D50: =[51]Manor!$H$72 -> -10522.6 | E50: 0 | F50: 74510.79 | H50: =VLOOKUP(A50,'[50]balances from P12 EOY'!$B$6:$X$103,22,0) -> 13724.75 | I50: =[51]Manor!$H$83 -> 15413.75 | J50: -1689 | L50: 77712.94 | M50: 4891.15 | N50: 72821.79 | O50: =VLOOKUP(A50,'[50]CFR ANALYSIS REVENUE INCOME '!$A$4:$S$97,19,0) -> 1793643.44 | P50: 0.03567497785
A51: 11093 | B51: Martin Primary | C51: =VLOOKUP(A51,'[50]balances from P12 EOY'!$B$6:$X$103,20,0) -> 285146.94 | D51: =[51]Martin!$H$72 -> 309495.92 | E51: 0 | F51: -24348.98 | H51: =VLOOKUP(A51,'[50]balances from P12 EOY'!$B$6:$X$103,22,0) -> 23476.72 | I51: =[51]Martin!$H$85 -> 9203.49 | J51: 14273.23 | L51: 308623.66 | M51: 318699.41 | N51: -10075.75 | O51: =VLOOKUP(A51,'[50]CFR ANALYSIS REVENUE INCOME '!$A$4:$S$97,19,0) -> 3645646.39 | P51: 0.0782157427
A52: 10125 | B52: Mathilda Marks Kennedy School | C52: =VLOOKUP(A52,'[50]balances from P12 EOY'!$B$6:$X$103,20,0) -> 36795.8 | D52: =[51]MMK!$H$72 -> 29057.67 | E52: 0 | F52: 7738.13 | H52: =VLOOKUP(A52,'[50]balances from P12 EOY'!$B$6:$X$103,22,0) -> 0 | I52: 0 | J52: 0 | L52: 36795.8 | M52: 29057.67 | N52: 7738.13 | O52: =VLOOKUP(A52,'[50]CFR ANALYSIS REVENUE INCOME '!$A$4:$S$97,19,0) -> 1514787.59 | P52: 0.02429106248
A53: 10126 | B53: Menorah Foundation School | C53: =VLOOKUP(A53,'[50]balances from P12 EOY'!$B$6:$X$103,20,0) -> -16080.29 | D53: =[51]MenF!$H$73 -> -31959.81 | E53: 0 | F53: 15879.52 | H53: =VLOOKUP(A53,'[50]balances from P12 EOY'!$B$6:$X$103,22,0) -> 0 | I53: 0 | J53: 0 | L53: -16080.29 | M53: -31959.81 | N53: 15879.52 | O53: =VLOOKUP(A53,'[50]CFR ANALYSIS REVENUE INCOME '!$A$4:$S$97,19,0) -> 2874871.49 | P53: -0.005593394368
A54: 10114 | B54: Menorah Primary School | C54: =VLOOKUP(A54,'[50]balances from P12 EOY'!$B$6:$X$103,20,0) -> 5607.81 | D54: =[51]MenP!$H$69 -> 53322.3 | E54: 0 | F54: -47714.49 | H54: =VLOOKUP(A54,'[50]balances from P12 EOY'!$B$6:$X$103,22,0) -> -1 | I54: =[51]MenP!$H$79 -> -0.5 | J54: -0.5 | L54: 5606.81 | M54: 53321.8 | N54: -47714.99 | O54: =VLOOKUP(A54,'[50]CFR ANALYSIS REVENUE INCOME '!$A$4:$S$97,19,0) -> 2050185.67 | P54: 0.002735269338
A55: 10078 | B55: Monken Hadley CE School | C55: =VLOOKUP(A55,'[50]balances from P12 EOY'!$B$6:$X$103,20,0) -> 170062.97 | D55: =[51]Monken!$H$72 -> 180209.7 | E55: 0 | F55: -10146.73 | H55: =VLOOKUP(A55,'[50]balances from P12 EOY'!$B$6:$X$103,22,0) -> 0 | I55: =[51]MenP!$H$79 -> -0.5 | J55: 0.5 | L55: 170062.97 | M55: 180209.2 | N55: -10146.23 | O55: =VLOOKUP(A55,'[50]CFR ANALYSIS REVENUE INCOME '!$A$4:$S$97,19,0) -> 761973.44 | P55: 0.22318753
A56: 10079 | B56: Monkfrith School | C56: =VLOOKUP(A56,'[50]balances from P12 EOY'!$B$6:$X$103,20,0) -> 131770.98 | D56: =[51]MonkF!$H$69 -> 80105.96 | E56: 0 | F56: 51665.02 | H56: =VLOOKUP(A56,'[50]balances from P12 EOY'!$B$6:$X$103,22,0) -> 11305.5 | I56: =[51]MonkF!$H$81 -> 0 | J56: 11305.5 | L56: 143076.48 | M56: 80105.96 | N56: 62970.52 | O56: =VLOOKUP(A56,'[50]CFR ANALYSIS REVENUE INCOME '!$A$4:$S$97,19,0) -> 1809967.65 | P56: 0.07280294761
A57: 10081 | B57: Moss Hall Infant School | C57: =VLOOKUP(A57,'[50]balances from P12 EOY'!$B$6:$X$103,20,0) -> 94609.31 | D57: =[51]MHI!$H$73 -> 69525.54 | E57: 0 | F57: 25083.77 | H57: =VLOOKUP(A57,'[50]balances from P12 EOY'!$B$6:$X$103,22,0) -> 14584.63 | I57: =[51]MHI!$H$83 -> 8083.75 | J57: 6500.88 | L57: 109193.94 | M57: 77609.29 | N57: 31584.65 | O57: =VLOOKUP(A57,'[50]CFR ANALYSIS REVENUE INCOME '!$A$4:$S$97,19,0) -> 1946820.11 | P57: 0.04859684237
A58: 10080 | B58: Moss Hall Junior School | C58: =VLOOKUP(A58,'[50]balances from P12 EOY'!$B$6:$X$103,20,0) -> 226756.54 | D58: =[51]MHJ!$H$73 -> 192321.01 | E58: 0 | F58: 34435.53 | H58: =VLOOKUP(A58,'[50]balances from P12 EOY'!$B$6:$X$103,22,0) -> 14806.9 | I58: =[51]MHJ!$H$86 -> 0.43 | J58: 14806.47 | L58: 241563.44 | M58: 192321.44 | N58: 49242 | O58: =VLOOKUP(A58,'[50]CFR ANALYSIS REVENUE INCOME '!$A$4:$S$97,19,0) -> 2514343.9 | P58: 0.09018517316
A59: 10113 | B59: Noam Primary School | C59: =VLOOKUP(A59,'[50]balances from P12 EOY'!$B$6:$X$103,20,0) -> 12852.24 | D59: 0 | E59: 0 | F59: 12852.24 | H59: =VLOOKUP(A59,'[50]balances from P12 EOY'!$B$6:$X$103,22,0) -> 0 | I59: 0 | J59: 0 | L59: 12852.24 | M59: 0 | N59: 12852.24 | O59: =VLOOKUP(A59,'[50]CFR ANALYSIS REVENUE INCOME '!$A$4:$S$97,19,0) -> 325247.88 | P59: 0.03951521529
A60: 10082 | B60: Northside School | C60: =VLOOKUP(A60,'[50]balances from P12 EOY'!$B$6:$X$103,20,0) -> 143366.46 | D60: =[51]Norths!$H$72 -> 242852.44 | E60: 0 | F60: -99485.98 | H60: =VLOOKUP(A60,'[50]balances from P12 EOY'!$B$6:$X$103,22,0) -> 18817.71 | I60: =[51]Norths!$H$85 -> 0.23 | J60: 18817.48 | L60: 162184.17 | M60: 242852.67 | N60: -80668.5 | O60: =VLOOKUP(A60,'[50]CFR ANALYSIS REVENUE INCOME '!$A$4:$S$97,19,0) -> 1676084.31 | P60: 0.0855365444
A61: 10127 | B61: Orion School | C61: =VLOOKUP(A61,'[50]balances from P12 EOY'!$B$6:$X$103,20,0) -> 199337.78 | D61: =[51]Orion!$H$73 -> 221791.84 | E61: 0 | F61: -22454.06 | H61: =VLOOKUP(A61,'[50]balances from P12 EOY'!$B$6:$X$103,22,0) -> 3651.02 | I61: =[51]Orion!$H$85 -> -0.3 | J61: 3651.32 | L61: 202988.8 | M61: 221791.54 | N61: -18802.74 | O61: =VLOOKUP(A61,'[50]CFR ANALYSIS REVENUE INCOME '!$A$4:$S$97,19,0) -> 6569854.06 | P61: 0.03034127976
A62: 10084 | B62: Osidge School | C62: =VLOOKUP(A62,'[50]balances from P12 EOY'!$B$6:$X$103,20,0) -> 265799.09 | D62: =[51]Osidge!$H$72 -> 248450.94 | E62: 0 | F62: 17348.15 | H62: =VLOOKUP(A62,'[50]balances from P12 EOY'!$B$6:$X$103,22,0) -> 14735.58 | I62: =[51]Osidge!$H$83 -> 0.5 | J62: 14735.08 | L62: 280534.67 | M62: 248451.44 | N62: 32083.23 | O62: =VLOOKUP(A62,'[50]CFR ANALYSIS REVENUE INCOME '!$A$4:$S$97,19,0) -> 2001763.31 | P62: 0.1327824767
A63: 10085 | B63: Our Lady of Lourdes RC School | C63: =VLOOKUP(A63,'[50]balances from P12 EOY'!$B$6:$X$103,20,0) -> 106542.16 | D63: =[51]OLOL!$H$70 -> 21391.12 | E63: 0 | F63: 85151.04 | H63: =VLOOKUP(A63,'[50]balances from P12 EOY'!$B$6:$X$103,22,0) -> 1 | I63: =[51]OLOL!$H$76 -> 1 | J63: 0 | L63: 106543.16 | M63: 21392.12 | N63: 85151.04 | O63: =VLOOKUP(A63,'[50]CFR ANALYSIS REVENUE INCOME '!$A$4:$S$97,19,0) -> 1356936.4 | P63: 0.07851669393
A64: 10129 | B64: Pardes House School | C64: =VLOOKUP(A64,'[50]balances from P12 EOY'!$B$6:$X$103,20,0) -> 73275.65 | D64: =[51]Pardes!$H$68 -> 17532.32 | E64: 0 | F64: 55743.33 | H64: =VLOOKUP(A64,'[50]balances from P12 EOY'!$B$6:$X$103,22,0) -> 0 | I64: 0 | J64: 0 | L64: 73275.65 | M64: 17532.32 | N64: 55743.33 | O64: =VLOOKUP(A64,'[50]CFR ANALYSIS REVENUE INCOME '!$A$4:$S$97,19,0) -> 1881348.93 | P64: 0.03894846343
A65: 10119 | B65: Queenswell Infant School | C65: =VLOOKUP(A65,'[50]balances from P12 EOY'!$B$6:$X$103,20,0) -> 73999.69 | D65: =[51]QueenI!$H$71 -> 79254.12 | E65: 0 | F65: -5254.43 | H65: =VLOOKUP(A65,'[50]balances from P12 EOY'!$B$6:$X$103,22,0) -> 25246.98 | I65: =[51]QueenI!$H$82 -> 15090.75 | J65: 10156.23 | L65: 99246.67 | M65: 94344.87 | N65: 4901.8 | O65: =VLOOKUP(A65,'[50]CFR ANALYSIS REVENUE INCOME '!$A$4:$S$97,19,0) -> 1641393.64 | P65: 0.04508345116
A66: 10086 | B66: Queenswell Junior School | C66: =VLOOKUP(A66,'[50]balances from P12 EOY'!$B$6:$X$103,20,0) -> 135733.18 | D66: =[51]QueenJ!$H$71 -> 134490 | E66: 0 | F66: 1243.18 | H66: =VLOOKUP(A66,'[50]balances from P12 EOY'!$B$6:$X$103,22,0) -> 12746.92 | I66: =[51]QueenJ!$H$82 -> 9697 | J66: 3049.92 | L66: 148480.1 | M66: 144187 | N66: 4293.1 | O66: =VLOOKUP(A66,'[50]CFR ANALYSIS REVENUE INCOME '!$A$4:$S$97,19,0) -> 2075169.34 | P66: 0.06540824278
A67: 10112 | B67: Rosh Pinah School | C67: =VLOOKUP(A67,'[50]balances from P12 EOY'!$B$6:$X$103,20,0) -> 278225.33 | D67: =[51]RoshP!$H$70 -> 129908.65 | E67: 0 | F67: 148316.68 | H67: =VLOOKUP(A67,'[50]balances from P12 EOY'!$B$6:$X$103,22,0) -> 0 | I67: 0 | J67: 0 | L67: 278225.33 | M67: 129908.65 | N67: 148316.68 | O67: =VLOOKUP(A67,'[50]CFR ANALYSIS REVENUE INCOME '!$A$4:$S$97,19,0) -> 2634822.79 | P67: 0.1055954621
A68: 10110 | B68: Sacred Heart RC School | C68: =VLOOKUP(A68,'[50]balances from P12 EOY'!$B$6:$X$103,20,0) -> 226201.87 | D68: =[51]Sacred!$H$71 -> 147828.54 | E68: 0 | F68: 78373.33 | H68: =VLOOKUP(A68,'[50]balances from P12 EOY'!$B$6:$X$103,22,0) -> 0 | I68: 0 | J68: 0 | L68: 226201.87 | M68: 147828.54 | N68: 78373.33 | O68: =VLOOKUP(A68,'[50]CFR ANALYSIS REVENUE INCOME '!$A$4:$S$97,19,0) -> 2069504.7 | P68: 0.1093024191
A69: 11381 | B69: Sacks Morasha | C69: =VLOOKUP(A69,'[50]balances from P12 EOY'!$B$6:$X$103,20,0) -> 147190.92 | D69: =[51]Morasha!$H$69 -> 87789.62 | E69: 0 | F69: 59401.3 | H69: =VLOOKUP(A69,'[50]balances from P12 EOY'!$B$6:$X$103,22,0) -> 1 | I69: =[51]Morasha!$H$75 -> 1 | J69: 0 | L69: 147191.92 | M69: 87790.62 | N69: 59401.3 | O69: =VLOOKUP(A69,'[50]CFR ANALYSIS REVENUE INCOME '!$A$4:$S$97,19,0) -> 1153901.46 | P69: 0.1275593498
A70: 10087 | B70: St. Agnes' RC School | C70: =VLOOKUP(A70,'[50]balances from P12 EOY'!$B$6:$X$103,20,0) -> 526139 | D70: =[51]StAgnes!$H$72 -> 407523.54 | E70: 0 | F70: 118615.46 | H70: =VLOOKUP(A70,'[50]balances from P12 EOY'!$B$6:$X$103,22,0) -> 1 | I70: =[51]StAgnes!$H$78 -> 1 | J70: 0 | L70: 526140 | M70: 407524.54 | N70: 118615.46 | O70: =VLOOKUP(A70,'[50]CFR ANALYSIS REVENUE INCOME '!$A$4:$S$97,19,0) -> 1978607.77 | P70: 0.265913744
A71: 10099 | B71: St. Andrew's CE School | C71: =VLOOKUP(A71,'[50]balances from P12 EOY'!$B$6:$X$103,20,0) -> 191099.58 | D71: =[51]StAndrew!$H$68 -> 201563.22 | E71: 0 | F71: -10463.64 | H71: =VLOOKUP(A71,'[50]balances from P12 EOY'!$B$6:$X$103,22,0) -> 0 | I71: =[51]StAndrew!$H$78 -> 0 | J71: 0 | L71: 191099.58 | M71: 201563.22 | N71: -10463.64 | O71: =VLOOKUP(A71,'[50]CFR ANALYSIS REVENUE INCOME '!$A$4:$S$97,19,0) -> 1126883.85 | P71: 0.1695823221
A72: 10088 | B72: St. Catherine's RC School | C72: =VLOOKUP(A72,'[50]balances from P12 EOY'!$B$6:$X$103,20,0) -> 205106.06 | D72: =[51]StCath!$H$72 -> 247130.8 | E72: 0 | F72: -42024.74 | H72: =VLOOKUP(A72,'[50]balances from P12 EOY'!$B$6:$X$103,22,0) -> 0 | I72: 0 | J72: 0 | L72: 205106.06 | M72: 247130.8 | N72: -42024.74 | O72: =VLOOKUP(A72,'[50]CFR ANALYSIS REVENUE INCOME '!$A$4:$S$97,19,0) -> 2552171.23 | P72: 0.08036532094
A73: 10089 | B73: St. John's CE School (N11) | C73: =VLOOKUP(A73,'[50]balances from P12 EOY'!$B$6:$X$103,20,0) -> 114070.6 | D73: =[51]StJohnN11!$H$71 -> 81701.42 | E73: 0 | F73: 32369.18 | H73: =VLOOKUP(A73,'[50]balances from P12 EOY'!$B$6:$X$103,22,0) -> 0 | I73: 0 | J73: 0 | L73: 114070.6 | M73: 81701.42 | N73: 32369.18 | O73: =VLOOKUP(A73,'[50]CFR ANALYSIS REVENUE INCOME '!$A$4:$S$97,19,0) -> 1314587.85 | P73: 0.08677289996
A74: 10116 | B74: St. John's CE School (N20) | C74: =VLOOKUP(A74,'[50]balances from P12 EOY'!$B$6:$X$103,20,0) -> 82405.38 | D74: =[51]StJohnN20!$H$69 -> 69137.14 | E74: 0 | F74: 13268.24 | H74: =VLOOKUP(A74,'[50]balances from P12 EOY'!$B$6:$X$103,22,0) -> 0 | I74: 0 | J74: 0 | L74: 82405.38 | M74: 69137.14 | N74: 13268.24 | O74: =VLOOKUP(A74,'[50]CFR ANALYSIS REVENUE INCOME '!$A$4:$S$97,19,0) -> 1258939.76 | P74: 0.06545617401
A75: 10107 | B75: St. Joseph's RC Primary | C75: =VLOOKUP(A75,'[50]balances from P12 EOY'!$B$6:$X$103,20,0) -> -83472.04 | D75: =[51]StJosJ!$H$70 -> -122777.46 | E75: 0 | F75: 39305.42 | H75: =VLOOKUP(A75,'[50]balances from P12 EOY'!$B$6:$X$103,22,0) -> 0 | I75: 0 | J75: 0 | L75: -83472.04 | M75: -122777.46 | N75: 39305.42 | O75: =VLOOKUP(A75,'[50]CFR ANALYSIS REVENUE INCOME '!$A$4:$S$97,19,0) -> 2741948.41 | P75: -0.03044260049
A76: 10698 | B76: St. Mary's & St. Johns Primary | C76: =VLOOKUP(A76,'[50]balances from P12 EOY'!$B$6:$X$103,20,0) -> 332519.02 | D76: =[51]StMarStJon!$H$70 -> 309311.54 | E76: 0 | F76: 23207.48 | H76: =VLOOKUP(A76,'[50]balances from P12 EOY'!$B$6:$X$103,22,0) -> 0 | I76: =[51]StMarStJon!$H$80 -> 0 | J76: 0 | L76: 332519.02 | M76: 309311.54 | N76: 23207.48 | O76: =VLOOKUP(A76,'[50]CFR ANALYSIS REVENUE INCOME '!$A$4:$S$97,19,0) -> 7540297 | P76: 0.04409892873
A77: 10093 | B77: St. Mary's CE School (EN4) | C77: =VLOOKUP(A77,'[50]balances from P12 EOY'!$B$6:$X$103,20,0) -> 118820.43 | D77: =[51]StMarEN4!$H$70 -> 139925.72 | E77: 0 | F77: =C77-D77 -> -21105.29 | H77: =VLOOKUP(A77,'[50]balances from P12 EOY'!$B$6:$X$103,22,0) -> 0 | I77: =[51]StMarStJon!$H$80 -> 0 | J77: =H77-I77 -> 0 | L77: =C77+H77 -> 118820.43 | M77: 139925.72 | N77: =L77-M77 -> -21105.29 | O77: =VLOOKUP(A77,'[50]CFR ANALYSIS REVENUE INCOME '!$A$4:$S$97,19,0) -> 1185977.1 | P77: 0.1001877945
A78: 10092 | B78: St. Mary's CE School (N3) | C78: =VLOOKUP(A78,'[50]balances from P12 EOY'!$B$6:$X$103,20,0) -> 142474.73 | D78: =[51]StMarN3!$H$69 -> 104321.73 | E78: 0 | F78: 38153 | H78: =VLOOKUP(A78,'[50]balances from P12 EOY'!$B$6:$X$103,22,0) -> 0 | I78: =[51]StMarStJon!$H$80 -> 0 | J78: 0 | L78: 142474.73 | M78: 104321.73 | N78: 38153 | O78: =VLOOKUP(A78,'[50]CFR ANALYSIS REVENUE INCOME '!$A$4:$S$97,19,0) -> 2373030.31 | P78: =C78/O78 -> 0.06003915306
A79: 10094 | B79: St. Paul's CE School (N11) | C79: =VLOOKUP(A79,'[50]balances from P12 EOY'!$B$6:$X$103,20,0) -> 45619.27 | D79: =[51]StPaulN11!$H$71 -> 61679.57 | E79: 0 | F79: -16060.3 | H79: =VLOOKUP(A79,'[50]balances from P12 EOY'!$B$6:$X$103,22,0) -> 0 | I79: =[51]StPaulN11!$H$81 -> 0 | J79: 0 | L79: 45619.27 | M79: 61679.57 | N79: -16060.3 | O79: =VLOOKUP(A79,'[50]CFR ANALYSIS REVENUE INCOME '!$A$4:$S$97,19,0) -> 1247890.2 | P79: 0.03655711857
A80: 10095 | B80: St. Paul's CE School (NW7) | C80: =VLOOKUP(A80,'[50]balances from P12 EOY'!$B$6:$X$103,20,0) -> -11761.58 | D80: =[51]StPaulNW7!$H$70 -> 22193.69 | E80: 0 | F80: -33955.27 | H80: =VLOOKUP(A80,'[50]balances from P12 EOY'!$B$6:$X$103,22,0) -> 0 | I80: 0 | J80: 0 | L80: -11761.58 | M80: 22193.69 | N80: -33955.27 | O80: =VLOOKUP(A80,'[50]CFR ANALYSIS REVENUE INCOME '!$A$4:$S$97,19,0) -> 1195756.95 | P80: -0.009836095872
A81: 10108 | B81: St. Theresa's RC School | C81: =VLOOKUP(A81,'[50]balances from P12 EOY'!$B$6:$X$103,20,0) -> 63704.61 | D81: =[51]StThere!$H$70 -> 95043.09 | E81: 0 | F81: -31338.48 | H81: =VLOOKUP(A81,'[50]balances from P12 EOY'!$B$6:$X$103,22,0) -> 0 | I81: 0 | J81: 0 | L81: 63704.61 | M81: 95043.09 | N81: -31338.48 | O81: =VLOOKUP(A81,'[50]CFR ANALYSIS REVENUE INCOME '!$A$4:$S$97,19,0) -> 1202160.3 | P81: 0.05299177655
A82: 10096 | B82: St. Vincent's RC School | C82: =VLOOKUP(A82,'[50]balances from P12 EOY'!$B$6:$X$103,20,0) -> 98798.74 | D82: =[51]StVin!$H$70 -> 69001.74 | E82: 0 | F82: 29797 | H82: =VLOOKUP(A82,'[50]balances from P12 EOY'!$B$6:$X$103,22,0) -> -1 | I82: =[51]StVin!$H$81 -> -1 | J82: 0 | L82: 98797.74 | M82: 69000.74 | N82: 29797 | O82: =VLOOKUP(A82,'[50]CFR ANALYSIS REVENUE INCOME '!$A$4:$S$97,19,0) -> 1593341.12 | P82: 0.06200727437
A83: 10097 | B83: Sunnyfields School | C83: =VLOOKUP(A83,'[50]balances from P12 EOY'!$B$6:$X$103,20,0) -> 251240.14 | D83: =[51]Sunny!$H$73 -> 229601.44 | E83: 0 | F83: 21638.7 | H83: =VLOOKUP(A83,'[50]balances from P12 EOY'!$B$6:$X$103,22,0) -> 10338.54 | I83: =[51]Sunny!$H$86 -> -0.25 | J83: 10338.79 | L83: 261578.68 | M83: 229601.19 | N83: 31977.49 | O83: =VLOOKUP(A83,'[50]CFR ANALYSIS REVENUE INCOME '!$A$4:$S$97,19,0) -> 1604979.23 | P83: 0.1565379385
A84: 10100 | B84: Trent CE School | C84: =VLOOKUP(A84,'[50]balances from P12 EOY'!$B$6:$X$103,20,0) -> 19075.02 | D84: =[51]Trent!$H$72 -> 25795.14 | E84: 0 | F84: -6720.12 | H84: =VLOOKUP(A84,'[50]balances from P12 EOY'!$B$6:$X$103,22,0) -> 0 | I84: 0 | J84: 0 | L84: 19075.02 | M84: 25795.14 | N84: -6720.12 | O84: =VLOOKUP(A84,'[50]CFR ANALYSIS REVENUE INCOME '!$A$4:$S$97,19,0) -> 1153091.7 | P84: 0.01654250048
A85: 10101 | B85: Tudor School | C85: =VLOOKUP(A85,'[50]balances from P12 EOY'!$B$6:$X$103,20,0) -> -24084.44 | D85: =[51]Tudor!$H$71 -> -87918.54 | E85: 0 | F85: 63834.1 | H85: =VLOOKUP(A85,'[50]balances from P12 EOY'!$B$6:$X$103,22,0) -> 26493.72 | I85: =[51]Tudor!$H$81 -> 8084 | J85: 18409.72 | L85: 2409.28 | M85: -79834.54 | N85: 82243.82 | O85: =VLOOKUP(A85,'[50]CFR ANALYSIS REVENUE INCOME '!$A$4:$S$97,19,0) -> 1551389.42 | P85: -0.01552443229
A86: 10103 | B86: Underhill School | C86: =VLOOKUP(A86,'[50]balances from P12 EOY'!$B$6:$X$103,20,0) -> 235758.48 | D86: =[51]UnderP!$H$75 -> 253321.96 | E86: 0 | F86: -17563.48 | H86: =VLOOKUP(A86,'[50]balances from P12 EOY'!$B$6:$X$103,22,0) -> 16144.95 | I86: =[51]UnderP!$H$88 -> 343.7 | J86: 15801.25 | L86: 251903.43 | M86: 253665.66 | N86: -1762.23 | O86: =VLOOKUP(A86,'[50]CFR ANALYSIS REVENUE INCOME '!$A$4:$S$97,19,0) -> 3873047.68 | P86: 0.06087156665
A87: 10124 | B87: Wessex Gardens School | C87: =VLOOKUP(A87,'[50]balances from P12 EOY'!$B$6:$X$103,20,0) -> 189485.91 | D87: =[51]Wessex!$H$74 -> 177511.5 | E87: 0 | F87: 11974.41 | H87: =VLOOKUP(A87,'[50]balances from P12 EOY'!$B$6:$X$103,22,0) -> 55800.13 | I87: =[51]Wessex!$H$86 -> 18756.13 | J87: 37044 | L87: 245286.04 | M87: 196267.63 | N87: 49018.41 | O87: =VLOOKUP(A87,'[50]CFR ANALYSIS REVENUE INCOME '!$A$4:$S$97,19,0) -> 2470175.87 | P87: 0.07670948142
A88: 10105 | B88: Whitings Hill School | C88: =VLOOKUP(A88,'[50]balances from P12 EOY'!$B$6:$X$103,20,0) -> 194076.68 | D88: =[51]Whiting!$H$71 -> 253134.39 | E88: 0 | F88: -59057.71 | H88: =VLOOKUP(A88,'[50]balances from P12 EOY'!$B$6:$X$103,22,0) -> 12491.17 | I88: =[51]Whiting!$H$83 -> 7349.5 | J88: 5141.67 | L88: 206567.85 | M88: 260483.89 | N88: -53916.04 | O88: =VLOOKUP(A88,'[50]CFR ANALYSIS REVENUE INCOME '!$A$4:$S$97,19,0) -> 2966012.9 | P88: 0.06543352526
A89: 10123 | B89: Woodcroft Primary | C89: =VLOOKUP(A89,'[50]balances from P12 EOY'!$B$6:$X$103,20,0) -> 128946.68 | D89: =[51]Woodcrft!$H$73 -> 100906.23 | E89: 0 | F89: 28040.45 | H89: =VLOOKUP(A89,'[50]balances from P12 EOY'!$B$6:$X$103,22,0) -> 0.48 | I89: =[51]Woodcrft!$H$84 -> 0.5 | J89: -0.02 | L89: 128947.16 | M89: 100906.73 | N89: 28040.43 | O89: =VLOOKUP(A89,'[50]CFR ANALYSIS REVENUE INCOME '!$A$4:$S$97,19,0) -> 2664778.17 | P89: 0.04838927362
A90: 10109 | B90: Woodridge School | C90: =VLOOKUP(A90,'[50]balances from P12 EOY'!$B$6:$X$103,20,0) -> 27183.5 | D90: =[51]Woodrdge!$H$71 -> 29921.24 | E90: 0 | F90: -2737.74 | H90: =VLOOKUP(A90,'[50]balances from P12 EOY'!$B$6:$X$103,22,0) -> 11850.52 | I90: =[51]Woodrdge!$H$84 -> 11446.75 | J90: 403.77 | L90: 39034.02 | M90: 41367.99 | N90: -2333.97 | O90: =VLOOKUP(A90,'[50]CFR ANALYSIS REVENUE INCOME '!$A$4:$S$97,19,0) -> 1231752.02 | P90: 0.02206897132
L91: 0 | M91: 0
B92: Sub Total - Primary Sector | C92: =SUM(C13:C90) -> 11418538.25 | D92: 10725312.9 | E92: 0 | F92: 693225.35 | G92: 0 | H92: 633330.4 | I92: 290094.71 | J92: 343235.69 | K92: 0 | L92: 12051868.65 | M92: 11015407.61 | N92: 1036461.04 | O92: 164637369.6 | P92: =C92/O92 -> 0.06935568926
A94: 10145 | B94: Finchley Catholic High School | C94: =VLOOKUP(A94,'[50]balances from P12 EOY'!$B$6:$X$103,20,0) -> 491384.44 | D94: =[51]FinchleyC!$H$73 -> 543829.36 | E94: 0 | F94: =C94-D94 -> -52444.92 | H94: =VLOOKUP(A94,'[50]balances from P12 EOY'!$B$6:$X$103,22,0) -> 1 | I94: =[51]FinchleyC!$H$79 -> 1 | J94: =H94-I94 -> 0 | L94: =C94+H94 -> 491385.44 | M94: 543830.36 | N94: =L94-M94 -> -52444.92 | O94: =VLOOKUP(A94,'[50]CFR ANALYSIS REVENUE INCOME '!$A$4:$S$97,19,0) -> 7134469.24 | P94: =C94/O94 -> 0.0688747016
A95: 10139 | B95: Friern Barnet School | C95: =VLOOKUP(A95,'[50]balances from P12 EOY'!$B$6:$X$103,20,0) -> 140001.4 | D95: =[51]FBarnet!$H$69 -> 174783.78 | E95: 0 | F95: -34782.38 | H95: =VLOOKUP(A95,'[50]balances from P12 EOY'!$B$6:$X$103,22,0) -> 52287.97 | I95: =[51]FBarnet!$H$80 -> 25216.71 | J95: 27071.26 | L95: 192289.37 | M95: 200000.49 | N95: -7711.12 | O95: =VLOOKUP(A95,'[50]CFR ANALYSIS REVENUE INCOME '!$A$4:$S$97,19,0) -> 5694915.64 | P95: 0.0245835775
A96: 11174 | B96: JCoSS | C96: =VLOOKUP(A96,'[50]balances from P12 EOY'!$B$6:$X$103,20,0) -> 186979.98 | D96: =[51]JCoSS!$H$72 -> 89342.74 | E96: 0 | F96: 97637.24 | H96: =VLOOKUP(A96,'[50]balances from P12 EOY'!$B$6:$X$103,22,0) -> 0 | I96: 0 | J96: 0 | L96: 186979.98 | M96: 89342.74 | N96: 97637.24 | O96: =VLOOKUP(A96,'[50]CFR ANALYSIS REVENUE INCOME '!$A$4:$S$97,19,0) -> 11589584.85 | P96: 0.01613344934
A97: 11513 | B97: Menorah High | C97: =VLOOKUP(A97,'[50]balances from P12 EOY'!$B$6:$X$103,20,0) -> 1184.51 | D97: ='[51]MenorahHigh '!$H$69 -> 37247.42 | F97: -36062.91 | H97: =VLOOKUP(A97,'[50]balances from P12 EOY'!$B$6:$X$103,22,0) -> 0 | I97: 0 | J97: 0 | L97: 1184.51 | M97: 37247.42 | N97: -36062.91 | O97: =VLOOKUP(A97,'[50]CFR ANALYSIS REVENUE INCOME '!$A$4:$S$97,19,0) -> 2024282.88 | P97: 0.0005851504311
A98: 10142 | B98: St James' Catholic High School | C98: =VLOOKUP(A98,'[50]balances from P12 EOY'!$B$6:$X$103,20,0) -> -314101.58 | D98: =[51]StJames!$H$71 -> -333259.72 | E98: 0 | F98: 19158.14 | H98: =VLOOKUP(A98,'[50]balances from P12 EOY'!$B$6:$X$103,22,0) -> 0 | I98: 0 | J98: 0 | L98: -314101.58 | M98: -333259.72 | N98: 19158.14 | O98: =VLOOKUP(A98,'[50]CFR ANALYSIS REVENUE INCOME '!$A$4:$S$97,19,0) -> 6792685.26 | P98: -0.04624115029
A99: 10148 | B99: St. Michael's Catholic Gram'r Sch. | C99: =VLOOKUP(A99,'[50]balances from P12 EOY'!$B$6:$X$103,20,0) -> -497455.64 | D99: =[51]StMichael!$H$73 -> -359987.74 | E99: 0 | F99: -137467.9 | H99: =VLOOKUP(A99,'[50]balances from P12 EOY'!$B$6:$X$103,22,0) -> 3251.26 | I99: =[51]StMichael!$H$79 -> 4443 | J99: -1191.74 | L99: -494204.38 | M99: -355544.74 | N99: -138659.64 | O99: =VLOOKUP(A99,'[50]CFR ANALYSIS REVENUE INCOME '!$A$4:$S$97,19,0) -> 4448639.65 | P99: -0.1118219679
L100: 0 | M100: 0
B101: Sub Total - Secondary Sector | C101: =SUM(C94:C100) -> 7993.11 | D101: 151955.84 | E101: 0 | F101: -143962.73 | G101: 0 | H101: 55540.23 | I101: 29660.71 | J101: 25879.52 | K101: 0 | L101: 63533.34 | M101: 181616.55 | N101: -118083.21 | O101: 37684577.52 | P101: =C101/O101 -> 0.000212105602
L102: =C102+H102 -> 0 | M102: 0
A103: 10159 | B103: Mapledown School | C103: =VLOOKUP(A103,'[50]balances from P12 EOY'!$B$6:$X$103,20,0) -> 105685.45 | D103: =[51]Mpldwn!$H$70 -> 149681.7 | E103: 0 | F103: =C103-D103 -> -43996.25 | H103: =VLOOKUP(A103,'[50]balances from P12 EOY'!$B$6:$X$103,22,0) -> 194.9 | I103: =[51]Mpldwn!$H$83 -> 0.25 | J103: =H103-I103 -> 194.65 | L103: 105880.35 | M103: 149681.95 | N103: =L103-M103 -> -43801.6 | O103: =VLOOKUP(A103,'[50]CFR ANALYSIS REVENUE INCOME '!$A$4:$S$97,19,0) -> 2766489.6 | P103: =C103/O103 -> 0.03820200517
A104: 10157 | B104: Northway School | C104: =VLOOKUP(A104,'[50]balances from P12 EOY'!$B$6:$X$103,20,0) -> 299312.36 | D104: =[51]Nrthwy!$H$70 -> 185976.54 | E104: 0 | F104: =C104-D104 -> 113335.82 | H104: =VLOOKUP(A104,'[50]balances from P12 EOY'!$B$6:$X$103,22,0) -> 22150.9 | I104: =[51]Nrthwy!$H$82 -> 0.79 | J104: =H104-I104 -> 22150.11 | L104: 321463.26 | M104: 185977.33 | N104: =L104-M104 -> 135485.93 | O104: =VLOOKUP(A104,'[50]CFR ANALYSIS REVENUE INCOME '!$A$4:$S$97,19,0) -> 2696663.1 | P104: =C104/O104 -> 0.1109936054
A105: 10158 | B105: Oakleigh School | C105: =VLOOKUP(A105,'[50]balances from P12 EOY'!$B$6:$X$103,20,0) -> 75384.07 | D105: =[51]Oklgh!$H$73 -> 214291.17 | E105: 0 | F105: =C105-D105 -> -138907.1 | H105: =VLOOKUP(A105,'[50]balances from P12 EOY'!$B$6:$X$103,22,0) -> 21253.48 | I105: =[51]Oklgh!$H$84 -> 0 | J105: =H105-I105 -> 21253.48 | L105: 96637.55 | M105: 214291.17 | N105: =L105-M105 -> -117653.62 | O105: =VLOOKUP(A105,'[50]CFR ANALYSIS REVENUE INCOME '!$A$4:$S$97,19,0) -> 4063317.29 | P105: =C105/O105 -> 0.01855234643
L106: 0 | M106: 0
B107: Sub Total - Special Sector | C107: =SUM(C103:C106) -> 480381.88 | D107: 549949.41 | E107: 0 | F107: -69567.53 | G107: 0 | H107: 43599.28 | I107: 1.04 | J107: 43598.24 | K107: 0 | L107: 523981.16 | M107: 549950.45 | N107: -25969.29 | O107: 9526469.99 | P107: =C107/O107 -> 0.05042601095
L108: =C108+H108 -> 0 | M108: 0
A109: 10185 | B109: Northgate School | C109: =VLOOKUP(A109,'[50]balances from P12 EOY'!$B$6:$X$103,20,0) -> 130815.77 | D109: =[51]Northg!$H$64 -> 100275.2 | E109: 0 | F109: =C109-D109 -> 30540.57 | H109: =VLOOKUP(A109,'[50]balances from P12 EOY'!$B$6:$X$103,22,0) -> 17950.18 | I109: =[51]Northg!$H$74 -> 10655.39 | J109: =H109-I109 -> 7294.79 | L109: 148765.95 | M109: 110930.59 | N109: =L109-M109 -> 37835.36 | O109: =VLOOKUP(A109,'[50]CFR ANALYSIS REVENUE INCOME '!$A$4:$S$97,19,0) -> 564167.64 | P109: =C109/O109 -> 0.2318739338
A110: 10188 | B110: Pavilion Study Centre | C110: =VLOOKUP(A110,'[50]balances from P12 EOY'!$B$6:$X$103,20,0) -> 104683.82 | D110: =[51]Pavilion!$H$73 -> 114164.9 | E110: 0 | F110: =C110-D110 -> -9481.08 | H110: =VLOOKUP(A110,'[50]balances from P12 EOY'!$B$6:$X$103,22,0) -> 26351.78 | I110: =[51]Pavilion!$H$86 -> 8036.56 | J110: =H110-I110 -> 18315.22 | L110: 131035.6 | M110: 122201.46 | N110: =L110-M110 -> 8834.14 | O110: =VLOOKUP(A110,'[50]CFR ANALYSIS REVENUE INCOME '!$A$4:$S$97,19,0) -> 2588303.1 | P110: =C110/O110 -> 0.0404449618
B111: Sub Total - Pupil referral units | C111: =SUM(C109:C110) -> 235499.59 | D111: 214440.1 | E111: 0 | F111: 21059.49 | G111: 0 | H111: 44301.96 | I111: 18691.95 | J111: 25610.01 | K111: 0 | L111: 279801.55 | M111: 233132.05 | N111: 46669.5 | O111: 3152470.74 | P111: =C111/O111 -> 0.07470318027
B113: Sub Total All Sectors | C113: =C107+C101+C92+C11+C111 -> 12790290.6 | D113: 12285599.66 | E113: 0 | F113: 504690.94 | G113: 0 | H113: 853228.34 | I113: 362002.15 | J113: 491226.19 | K113: 0 | L113: 13643518.94 | M113: 12647601.81 | N113: 995917.13 | O113: 217943575.4 | P113: =C113/O113 -> 0.05868624747
B115: *School Income is all CFR codes I01 to I18
